bitfinex/quotes_SOLUSD_20220212
["timestamp","ask_amount","ask_price","bid_price","bid_amount"]
[1644650527804,5.253,95.225,95.141,42.04657131]
[1644650528205,2.38366791,95.224,95.141,42.04657131]
[1644650529809,5.253,95.223,95.141,42.04657131]
[1644650530609,2.38366791,95.222,95.141,42.04657131]
[1644650531807,2.38366791,95.222,95.141,48.65488741]
[1644650532208,5.253,95.221,95.141,6.6083161]
[1644650532509,15.13,95.21,95.141,6.6083161]
[1644650532908,2.38366791,95.209,95.141,6.6083161]
[1644650533110,7.63666791,95.209,95.141,6.6083161]
[1644650533308,43.83902631,95.208,95.141,6.6083161]
[1644650533508,5.253,95.207,95.141,6.6083161]
[1644650533910,7.63666791,95.207,95.141,6.6083161]
[1644650534210,2.38366791,95.206,95.141,6.6083161]
[1644650534408,5.253,95.205,95.141,6.6083161]
[1644650535709,43.83902631,95.208,95.141,6.6083161]
[1644650536714,7.63666791,95.207,95.141,6.6083161]
[1644650537013,2.38366791,95.206,95.141,6.6083161]
[1644650537211,5.253,95.205,95.141,6.6083161]
[1644650537413,2.38366791,95.206,95.141,6.6083161]
[1644650537613,5.253,95.205,95.141,6.6083161]
[1644650537814,5.253,95.207,95.141,6.6083161]
[1644650539017,43.83902631,95.208,95.141,6.6083161]
[1644650541122,37.23071021,95.208,95.137,1.46365759]
[1644650541322,37.23071021,95.208,95.139,1.46365759]
[1644650542221,5.253,95.218,95.14,1.46365759]
[1644650542420,5.253,95.234,95.145,1.46365759]
[1644650542620,5.253,95.234,95.152,1.46365759]
[1644650542821,5.253,95.236,95.152,1.46365759]
[1644650543019,29.5467,95.244,95.155,1.46365759]
[1644650543221,47.74812269,95.243,95.152,48.17807081]
[1644650543422,47.74812269,95.243,95.155,1.46365759]
[1644650543620,47.74812269,95.243,95.158,1.46365759]
[1644650543821,7.63566791,95.242,95.156,1.46365759]
[1644650544022,7.63566791,95.242,95.154,1.46365759]
[1644650544221,2.38366791,95.241,95.152,49.6417284]
[1644650544421,5.252,95.24,95.152,49.6417284]
[1644650544622,5.252,95.24,95.154,1.46365759]
[1644650544821,5.252,95.24,95.16,15.7611]
[1644650545822,5.252,95.242,95.161,1.46365759]
[1644650546024,7.63566791,95.239,95.153,24.8237]
[1644650546223,2.38366791,95.239,95.153,24.8237]
[1644650546523,47.74812269,95.243,95.153,26.28735759]
[1644650546524,5.252,95.238,95.153,26.28735759]
[1644650546722,5.252,95.24,95.153,24.8237]
[1644650546922,2.38366791,95.237,95.152,48.17807081]
[1644650547123,5.252,95.236,95.152,48.17807081]
[1644650547523,7.63566791,95.236,95.152,48.17807081]
[1644650550649,7.63566791,95.236,95.149,1.46365759]
[1644650551251,7.63566791,95.236,95.197,1.6944099]
[1644650553652,5.252,95.236,95.197,1.6944099]
[1644650553854,5.251,95.239,95.197,1.6944099]
[1644650555057,5.251,95.239,95.226,1.1265026]
[1644650556457,32.0,95.238,95.197,1.6944099]
[1644650556660,5.251,95.237,95.197,1.6944099]
[1644650557059,32.0,95.238,95.197,1.6944099]
[1644650557260,5.251,95.237,95.197,1.6944099]
[1644650558259,5.251,95.239,95.197,1.6944099]
[1644650558458,15.13,95.24,95.197,1.6944099]
[1644650559659,5.251,95.239,95.197,1.6944099]
[1644650559859,15.13,95.24,95.197,1.6944099]
[1644650561162,7.63466791,95.239,95.157,1.46365759]
[1644650561365,7.63466791,95.239,95.143,1.46365759]
[1644650561561,28.99129357,95.238,95.143,1.46365759]
[1644650561761,1.48060037,95.234,95.141,5.251]
[1644650561966,45.98537056,95.219,95.141,5.251]
[1644650562663,7.63666791,95.218,95.141,5.251]
[1644650562863,22.878,95.217,95.141,5.251]
[1644650563063,5.253,95.216,95.141,5.251]
[1644650563265,7.63666791,95.216,95.141,5.251]
[1644650563664,2.38366791,95.215,95.141,5.251]
[1644650563965,2.38366791,95.215,95.131,1.46365759]
[1644650563966,5.253,95.214,95.131,1.46365759]
[1644650564163,5.253,95.214,95.132,1.46365759]
[1644650564363,2.38366791,95.213,95.131,1.46365759]
[1644650564566,2.38366791,95.213,95.13,0.024]
[1644650564764,5.253,95.212,95.13,0.024]
[1644650568772,15.13,95.21,95.13,0.024]
[1644650568972,5.253,95.209,95.13,0.024]
[1644650573078,5.253,95.209,95.13,15.7891]
[1644650573276,5.253,95.209,95.13,17.22875759]
[1644650573477,5.253,95.209,95.13,17.25275759]
[1644650573677,5.253,95.209,95.134,1.46365759]
[1644650574080,5.253,95.209,95.141,38.22055927]
[1644650574280,45.98537056,95.219,95.146,1.46365759]
[1644650574479,45.98537056,95.219,95.141,38.22055927]
[1644650574480,45.98537056,95.219,95.15,1.46365759]
[1644650574682,45.98537056,95.219,95.151,1.46365759]
[1644650574879,45.98537056,95.219,95.152,1.46365759]
[1644650575484,45.98537056,95.219,95.15,1.46365759]
[1644650575880,45.98537056,95.219,95.148,1.46365759]
[1644650576079,5.253,95.218,95.142,24.9893]
[1644650576281,24.0745,95.217,95.142,24.9893]
[1644650576581,5.253,95.216,95.142,24.9893]
[1644650577184,2.38366791,95.215,95.142,24.9893]
[1644650577381,5.253,95.214,95.142,24.9893]
[1644650582787,5.253,95.216,95.142,24.9893]
[1644650583008,5.253,95.213,95.142,24.9893]
[1644650583207,5.253,95.216,95.142,24.9893]
[1644650585010,2.38366791,95.215,95.142,24.9893]
[1644650585208,5.253,95.214,95.142,24.9893]
[1644650585407,2.38366791,95.215,95.142,24.9893]
[1644650585607,5.253,95.214,95.142,24.9893]
[1644650585807,5.253,95.214,95.13,0.024]
[1644650586909,5.253,95.214,95.13,1.48765759]
[1644650587109,5.253,95.214,95.13,0.024]
[1644650588710,24.0745,95.217,95.135,1.46365759]
[1644650589112,24.0745,95.217,95.132,1.46365759]
[1644650590115,24.0745,95.217,95.135,1.46365759]
[1644650590513,24.0745,95.217,95.141,1.46365759]
[1644650590715,24.0745,95.217,95.142,42.99507263]
[1644650590915,45.98537056,95.219,95.147,1.46365759]
[1644650591119,45.98537056,95.219,95.149,1.46365759]
[1644650591316,5.253,95.218,95.15,1.46365759]
[1644650591515,5.253,95.218,95.155,1.46365759]
[1644650591717,45.98537056,95.219,95.155,1.46365759]
[1644650594218,5.252,95.218,95.147,1.46365759]
[1644650594424,31.84646791,95.218,95.143,24.9189]
[1644650594620,2.38366791,95.217,95.138,1.46365759]
[1644650594820,5.253,95.216,95.132,1.46365759]
[1644650595022,5.253,95.216,95.131,1.46365759]
[1644650595224,2.38366791,95.215,95.131,1.46365759]
[1644650595421,2.38366791,95.215,95.132,23.5538]
[1644650595621,5.253,95.214,95.131,1.46365759]
[1644650595820,5.253,95.214,95.127,1.46365759]
[1644650595821,15.13,95.21,95.127,1.46365759]
[1644650596022,5.253,95.209,95.125,1.46365759]
[1644650596222,7.63666791,95.209,95.125,1.46365759]
[1644650596421,5.253,95.209,95.13,0.024]
[1644650596620,2.38366791,95.208,95.13,0.024]
[1644650596821,5.253,95.207,95.13,0.024]
[1644650597221,28.5941,95.207,95.13,0.024]
[1644650598225,2.38366791,95.206,95.13,0.024]
[1644650598525,1.48060037,95.201,95.13,0.024]
[1644650598722,15.7747,95.18,95.11,0.024]
[1644650598923,28.9585,95.179,95.12,0.024]
[1644650599122,28.9585,95.179,95.1,0.024]
[1644650599123,31.34216791,95.179,95.1,0.024]
[1644650599422,38.05597139,95.178,95.1,0.024]
[1644650599722,5.255,95.177,95.1,0.024]
[1644650601524,7.63866791,95.177,95.1,0.024]
[1644650602426,0.48,95.16,95.092,1.46365759]
[1644650602624,15.13,95.15,95.08,0.024]
[1644650602827,5.256,95.149,95.06,0.024]
[1644650603026,7.63966791,95.149,95.044,1.46365759]
[1644650603225,47.21735568,95.148,95.06,0.024]
[1644650603426,5.257,95.147,95.05,0.024]
[1644650603624,34.64557903,95.147,95.05,0.024]
[1644650603827,15.7854,95.13,95.05,0.024]
[1644650604028,15.13,95.12,95.05,0.024]
[1644650604228,5.258,95.119,95.05,0.024]
[1644650604427,7.64166791,95.119,95.03,1.46365759]
[1644650604627,7.64166791,95.119,95.029,35.25836389]
[1644650604828,2.38366791,95.118,95.03,0.024]
[1644650605029,2.38366791,95.118,95.029,35.25836389]
[1644650605030,5.259,95.117,95.02,0.024]
[1644650605435,15.7873,95.11,95.02,0.024]
[1644650605631,15.13,95.1,95.02,0.024]
[1644650605833,28.5505,95.099,95.02,0.024]
[1644650606031,37.50531885,95.098,95.02,0.024]
[1644650606433,39.88898676,95.098,95.02,0.024]
[1644650606833,2.38366791,95.097,95.02,0.024]
[1644650607033,5.259,95.096,95.02,0.024]
[1644650608037,4.40074151,95.096,95.02,0.024]
[1644650608234,23.2976,95.095,95.02,0.024]
[1644650608436,5.259,95.094,95.02,0.024]
[1644650610638,23.2976,95.095,95.02,0.024]
[1644650611839,5.259,95.094,95.02,0.024]
[1644650615043,15.13,95.09,95.02,0.024]
[1644650615244,5.26,95.089,95.02,0.024]
[1644650615442,7.64366791,95.089,95.02,0.024]
[1644650616043,2.38366791,95.088,95.02,0.024]
[1644650616245,5.26,95.087,95.02,0.024]
[1644650616444,29.4293,95.087,95.02,0.024]
[1644650619251,2.38366791,95.086,95.0,0.024]
[1644650619452,5.26,95.085,95.0,0.024]
[1644650619851,2.38366791,95.084,95.0,0.024]
[1644650620053,41.3152427,95.083,95.0,0.024]
[1644650620253,46.5752427,95.083,95.0,0.024]
[1644650620450,2.38366791,95.082,95.0,0.024]
[1644650620657,5.26,95.081,95.0,0.024]
[1644650621052,2.38366791,95.08,95.0,0.024]
[1644650621454,5.26,95.079,95.0,0.024]
[1644650621854,15.13,95.07,95.0,0.024]
[1644650622054,15.13,95.07,94.99,0.024]
[1644650622254,42.58730724,95.069,94.97,0.024]
[1644650622453,73.62823593,95.069,94.95,0.024]
[1644650622755,85.25670717,95.068,94.95,0.024]
[1644650622953,15.7982,95.05,94.95,0.024]
[1644650623157,15.13,95.04,94.95,0.024]
[1644650623354,5.263,95.039,94.95,0.024]
[1644650623954,5.263,95.039,94.951,2.38366791]
[1644650624171,15.13,95.04,94.96,0.024]
[1644650624370,5.263,95.039,94.96,0.024]
[1644650624571,7.64666791,95.039,94.96,0.024]
[1644650624774,2.38366791,95.038,94.96,0.024]
[1644650624970,5.263,95.037,94.96,0.024]
[1644650625373,2.38366791,95.036,94.96,0.024]
[1644650625774,43.35583164,95.034,94.96,0.024]
[1644650625972,5.263,95.033,94.96,0.024]
[1644650626171,7.64666791,95.033,94.96,0.024]
[1644650626371,7.64666791,95.033,94.936,1.46365759]
[1644650626372,2.38366791,95.032,94.94,0.024]
[1644650626574,15.13,95.03,94.94,0.024]
[1644650626772,5.263,95.029,94.94,0.024]
[1644650626972,7.64666791,95.029,94.94,0.024]
[1644650627173,2.38366791,95.028,94.94,0.024]
[1644650627373,5.264,95.027,94.94,0.024]
[1644650627774,2.38366791,95.026,94.94,0.024]
[1644650628276,5.264,95.025,94.94,0.024]
[1644650628674,2.38366791,95.024,94.94,0.024]
[1644650628874,40.44274475,95.009,94.92,0.024]
[1644650629072,40.44274475,95.009,94.9,40.63455451]
[1644650629073,5.265,95.008,94.93,0.024]
[1644650629272,7.64866791,95.008,94.92,0.024]
[1644650629475,2.38366791,95.007,94.92,0.024]
[1644650629674,53.5671,95.006,94.91,1.48765759]
[1644650629973,15.8079,94.99,94.92,0.024]
[1644650630176,15.13,94.98,94.9,1.48765759]
[1644650630372,5.266,94.979,94.899,1.46365759]
[1644650630574,7.64966791,94.979,94.9,0.024]
[1644650630773,41.90605772,94.978,94.897,1.46365759]
[1644650630978,5.266,94.977,94.9,0.024]
[1644650631174,15.8102,94.97,94.892,1.46365759]
[1644650631376,5.266,94.969,94.892,1.46365759]
[1644650631574,5.266,94.969,94.891,1.46365759]
[1644650631776,7.64966791,94.969,94.892,1.46365759]
[1644650631977,2.38366791,94.968,94.89,0.024]
[1644650632188,2.38366791,94.968,94.883,1.46365759]
[1644650632189,5.267,94.967,94.883,1.46365759]
[1644650632377,5.267,94.967,94.89,0.024]
[1644650632579,2.38366791,94.966,94.889,1.46365759]
[1644650632777,2.38366791,94.966,94.874,1.6248219]
[1644650632778,2.38366791,94.966,94.89,0.024]
[1644650632979,5.267,94.965,94.89,1.46365759]
[1644650633276,2.38366791,94.964,94.89,1.46365759]
[1644650633479,15.13,94.96,94.889,1.46365759]
[1644650633677,30.9419,94.96,94.89,0.024]
[1644650633878,5.267,94.959,94.893,1.46365759]
[1644650634381,5.267,94.959,94.894,1.46365759]
[1644650634580,5.267,94.959,94.896,1.46365759]
[1644650634781,5.267,94.959,94.89,1.46365759]
[1644650635078,2.38366791,94.958,94.886,1.46365759]
[1644650635280,29.168,94.957,94.884,1.46365759]
[1644650635682,23.901,94.957,94.89,1.46365759]
[1644650635883,23.901,94.957,94.897,1.46365759]
[1644650636083,23.901,94.957,94.896,1.46365759]
[1644650636481,23.901,94.957,94.897,1.46365759]
[1644650636681,5.267,94.956,94.894,1.46365759]
[1644650637081,5.267,94.956,94.891,1.46365759]
[1644650637682,5.267,94.956,94.896,1.46365759]
[1644650638083,5.267,94.956,94.892,1.46365759]
[1644650638284,5.267,94.956,94.891,1.46365759]
[1644650638483,5.267,94.956,94.894,1.46365759]
[1644650638882,5.267,94.956,94.896,1.46365759]
[1644650639085,5.267,94.956,94.897,1.46365759]
[1644650639285,5.267,94.956,94.898,1.46365759]
[1644650639486,5.267,94.956,94.894,1.46365759]
[1644650640286,5.267,94.956,94.89,0.024]
[1644650640287,5.267,94.956,94.898,1.46365759]
[1644650640684,5.267,94.956,94.895,1.46365759]
[1644650640886,5.267,94.956,94.899,1.46365759]
[1644650641085,5.267,94.956,94.901,1.46365759]
[1644650641289,5.267,94.956,94.903,1.46365759]
[1644650641486,5.267,94.956,94.904,43.35521127]
[1644650641891,5.267,94.956,94.904,44.81886886]
[1644650642186,5.267,94.959,94.914,1.46365759]
[1644650642388,39.17709076,94.963,94.915,1.46365759]
[1644650643086,39.17709076,94.963,94.912,1.46365759]
[1644650643288,39.17709076,94.963,94.913,1.46365759]
[1644650643487,39.17709076,94.963,94.916,1.46365759]
[1644650643890,5.266,94.974,94.93,1.46365759]
[1644650644088,5.266,94.979,94.932,1.46365759]
[1644650644288,15.13,95.01,94.917,2.38366791]
[1644650644289,5.265,94.999,94.98,6.83362402]
[1644650644487,51.878,95.039,94.98,6.83362402]
[1644650644888,44.94205597,95.038,94.98,6.83362402]
[1644650645087,5.261,95.037,94.98,6.83362402]
[1644650645289,44.94205597,95.038,94.98,6.83362402]
[1644650645589,2.38366791,95.036,94.98,6.83362402]
[1644650645786,5.261,95.035,94.98,6.83362402]
[1644650646187,2.38366791,95.034,94.98,6.83362402]
[1644650646590,5.261,95.033,94.98,6.83362402]
[1644650650795,7.64466791,95.033,94.98,6.83362402]
[1644650651397,5.261,95.033,94.98,6.83362402]
[1644650651598,5.261,95.033,94.981,1.46365759]
[1644650651797,44.94205597,95.038,94.986,1.46365759]
[1644650652197,44.94205597,95.038,94.98,6.83362402]
[1644650652198,67.0,95.037,94.98,3.75362402]
[1644650652397,74.64466791,95.037,94.98,3.75362402]
[1644650652599,2.38366791,95.036,94.95,0.024]
[1644650652799,5.263,95.035,94.95,0.024]
[1644650652997,15.13,95.02,94.95,0.024]
[1644650653199,40.3958593,95.018,94.942,43.36391045]
[1644650653399,5.264,95.017,94.942,43.36391045]
[1644650653804,5.264,95.017,94.943,4.57617088]
[1644650654001,5.264,95.017,94.942,43.36391045]
[1644650655400,40.3958593,95.018,94.942,43.36391045]
[1644650655600,5.264,95.017,94.942,43.36391045]
[1644650656700,2.38366791,95.016,94.942,43.36391045]
[1644650657801,5.264,95.015,94.942,43.36391045]
[1644650658200,2.38366791,95.014,94.942,43.36391045]
[1644650658401,15.13,95.0,94.942,43.36391045]
[1644650658602,44.91153267,94.999,94.942,43.36391045]
[1644650658803,47.29520058,94.999,94.942,43.36391045]
[1644650659002,2.38366791,94.998,94.942,43.36391045]
[1644650659206,5.264,94.997,94.942,43.36391045]
[1644650660005,5.264,94.997,94.92,0.024]
[1644650660205,24.5183,94.996,94.91,4.60718941]
[1644650660406,5.265,94.995,94.91,4.60718941]
[1644650660605,24.5183,94.996,94.91,4.60718941]
[1644650660808,5.265,94.995,94.91,4.60718941]
[1644650661006,5.265,94.995,94.911,43.93176341]
[1644650661207,24.5183,94.996,94.911,43.93176341]
[1644650661406,5.265,94.995,94.911,43.93176341]
[1644650662606,24.5183,94.996,94.911,43.93176341]
[1644650664011,5.265,94.995,94.911,43.93176341]
[1644650665914,5.265,94.995,94.912,4.58299529]
[1644650666116,5.265,94.995,94.913,5.265]
[1644650666317,5.265,94.995,94.914,4.58299529]
[1644650666517,5.265,94.995,94.914,2.38366791]
[1644650666718,5.265,94.995,94.915,5.265]
[1644650666919,5.265,94.995,94.92,0.024]
[1644650667121,5.265,94.998,94.92,0.024]
[1644650667319,39.64753267,94.999,94.92,0.024]
[1644650667722,39.64753267,94.999,94.92,15.8241]
[1644650667920,5.265,94.998,94.92,15.8241]
[1644650668321,5.265,94.998,94.92,18.20776791]
[1644650668521,39.64753267,94.999,94.921,9.8498313]
[1644650668722,28.6046,95.019,94.922,4.0848313]
[1644650668921,23.3396,95.019,94.93,15.8227]
[1644650669123,5.264,95.046,94.931,5.264]
[1644650669423,22.9797,95.045,94.932,23.3041]
[1644650669625,47.09623277,95.044,94.933,37.34258755]
[1644650669822,47.09623277,95.044,94.934,24.6428]
[1644650670222,2.38366791,95.043,94.935,2.38366791]
[1644650670422,5.263,95.042,94.95,0.024]
[1644650670824,5.263,95.042,94.95,15.8199]
[1644650671022,5.263,95.042,94.96,0.024]
[1644650672024,2.38366791,95.041,94.96,0.024]
[1644650672525,5.263,95.04,94.96,0.024]
[1644650672938,2.38366791,95.039,94.96,0.024]
[1644650673338,5.263,95.038,94.96,0.024]
[1644650673637,7.64666791,95.038,94.96,0.024]
[1644650673838,2.38366791,95.038,94.96,0.024]
[1644650674038,5.263,95.037,94.96,0.024]
[1644650675938,5.263,95.043,94.96,0.024]
[1644650677039,7.64666791,95.043,94.96,0.024]
[1644650677241,30.9285,95.04,94.96,0.024]
[1644650677446,5.263,95.039,94.96,0.024]
[1644650677640,7.64666791,95.039,94.96,0.024]
[1644650677841,2.38366791,95.038,94.96,0.024]
[1644650678140,5.263,95.037,94.96,0.024]
[1644650678340,41.83323277,95.044,94.961,2.38366791]
[1644650678741,29.5097,95.068,94.961,2.38366791]
[1644650678942,5.263,95.068,94.97,0.024]
[1644650679342,5.261,95.089,94.971,2.38366791]
[1644650679541,5.261,95.067,94.99,15.7894]
[1644650679742,39.302006,95.066,94.991,42.91420931]
[1644650679946,5.261,95.065,94.991,42.91420931]
[1644650681552,24.5504,95.064,94.991,42.91420931]
[1644650681749,5.261,95.063,94.991,42.91420931]
[1644650682353,7.64466791,95.063,94.991,42.91420931]
[1644650682555,5.261,95.063,94.991,42.91420931]
[1644650682953,24.5504,95.064,94.991,42.91420931]
[1644650684253,5.261,95.063,94.991,42.91420931]
[1644650684854,24.5504,95.064,94.991,42.91420931]
[1644650686054,39.302006,95.066,94.991,42.91420931]
[1644650686855,39.302006,95.066,94.992,5.261]
[1644650687857,39.302006,95.066,94.98,0.024]
[1644650687858,7.64466791,95.065,94.98,0.024]
[1644650688059,113.0,95.056,94.97,0.024]
[1644650688259,5.261,95.055,94.95,0.024]
[1644650688460,7.64466791,95.055,94.93,0.024]
[1644650688659,7.64466791,95.055,94.92,15.154]
[1644650688861,26.48176791,95.054,94.93,0.024]
[1644650689059,15.13,95.04,94.93,0.024]
[1644650689260,76.92819105,95.039,94.93,0.024]
[1644650689458,79.31185896,95.039,94.93,0.024]
[1644650689859,2.38366791,95.038,94.93,15.8225]
[1644650690058,5.264,95.037,94.93,15.8225]
[1644650690461,2.38366791,95.036,94.93,15.8225]
[1644650690958,15.8002,95.03,94.93,15.8225]
[1644650691160,5.264,95.029,94.931,5.264]
[1644650691358,7.64766791,95.029,94.931,5.264]
[1644650691560,5.264,95.029,94.931,5.264]
[1644650691760,50.02646791,95.028,94.932,23.9935]
[1644650691961,5.264,95.027,94.932,23.9935]
[1644650692161,7.64766791,95.027,94.932,23.9935]
[1644650692361,2.38366791,95.026,94.932,23.9935]
[1644650692561,5.264,95.025,94.932,23.9935]
[1644650692764,48.45313783,95.024,94.932,23.9935]
[1644650692961,5.264,95.023,94.932,23.9935]
[1644650695267,5.264,95.023,94.933,2.38366791]
[1644650695964,5.264,95.023,94.941,39.46455306]
[1644650699374,2.38366791,95.022,94.941,39.46455306]
[1644650699578,5.264,95.021,94.941,39.46455306]
[1644650703478,5.264,95.023,94.941,39.46455306]
[1644650703678,5.264,95.023,94.942,2.38366791]
[1644650704077,5.264,95.023,94.943,23.5322]
[1644650705179,5.264,95.023,94.95,15.7955]
[1644650705382,15.13,95.05,94.951,5.263]
[1644650705681,15.13,95.08,94.96,0.024]
[1644650705883,23.7176,95.079,94.961,5.261]
[1644650706081,39.00823783,95.078,94.97,15.13]
[1644650706382,5.261,95.077,94.972,40.12850474]
[1644650706804,5.261,95.077,94.98,15.7908]
[1644650707003,5.261,95.077,94.981,5.261]
[1644650707606,5.261,95.077,94.982,23.6258]
[1644650710306,5.261,95.077,94.99,15.7878]
[1644650710509,39.00823783,95.078,94.991,53.16920278]
[1644650710805,5.261,95.077,94.991,55.55287069]
[1644650711006,5.261,95.077,94.991,47.90820278]
[1644650711212,5.261,95.077,94.992,2.38366791]
[1644650711408,39.00823783,95.078,94.993,5.261]
[1644650711607,39.00823783,95.078,94.994,22.5695]
[1644650711608,5.261,95.077,94.994,22.5695]
[1644650711810,5.261,95.077,95.0,15.7864]
[1644650712210,118.261,95.101,95.001,7.64466791]
[1644650712510,118.261,95.101,94.994,22.5695]
[1644650712511,5.261,95.099,95.002,2.38366791]
[1644650712711,24.9182,95.1,95.002,2.38366791]
[1644650712910,24.9182,95.1,95.003,5.26]
[1644650713309,35.65618691,95.099,95.004,2.38366791]
[1644650713711,35.65618691,95.099,95.006,42.48338259]
[1644650713910,35.65618691,95.099,95.01,15.7837]
[1644650714109,35.65618691,95.099,95.011,5.26]
[1644650714309,35.65618691,95.099,95.011,2.38366791]
[1644650714609,35.65618691,95.099,95.012,7.64366791]
[1644650714809,35.65618691,95.099,95.012,2.38366791]
[1644650715010,35.65618691,95.099,95.03,15.7807]
[1644650715213,35.65618691,95.099,95.031,40.17954026]
[1644650716508,5.259,95.098,95.031,40.17954026]
[1644650717315,2.38366791,95.097,95.031,40.17954026]
[1644650717512,5.259,95.096,95.01,15.7842]
[1644650717711,5.259,95.096,95.001,5.26]
[1644650717912,5.259,95.096,94.97,52.6207]
[1644650717913,15.13,95.09,94.97,52.6207]
[1644650718115,5.261,95.089,94.971,23.6549]
[1644650718313,7.64466791,95.089,94.971,23.6549]
[1644650718513,2.38366791,95.088,94.983,35.36218822]
[1644650718719,5.261,95.087,94.983,35.36218822]
[1644650719115,2.38366791,95.086,94.983,35.36218822]
[1644650719317,44.03920869,95.084,94.984,24.7391]
[1644650719516,15.13,95.08,94.984,24.7391]
[1644650719716,5.261,95.079,94.984,24.7391]
[1644650719916,7.64466791,95.079,94.984,24.7391]
[1644650720217,2.38366791,95.078,94.984,24.7391]
[1644650720417,29.9794,95.077,94.964,5.261]
[1644650720619,29.9794,95.077,94.961,5.261]
[1644650720817,2.38366791,95.076,94.96,15.7924]
[1644650721020,5.261,95.075,94.96,15.7924]
[1644650721220,21.9581932,95.074,94.96,15.7924]
[1644650721421,15.13,95.06,94.961,47.0647595]
[1644650721620,46.43501363,95.058,94.961,47.0647595]
[1644650721819,5.261,95.057,94.961,47.0647595]
[1644650722220,5.261,95.057,94.962,22.6125]
[1644650722623,7.64466791,95.057,94.95,0.024]
[1644650722822,25.8702304,95.056,94.95,0.024]
[1644650723028,15.7968,95.05,94.95,0.024]
[1644650723225,30.9268,95.05,94.94,0.024]
[1644650723424,5.263,95.049,94.94,0.024]
[1644650724625,5.263,95.049,94.941,2.38366791]
[1644650724825,5.263,95.049,94.95,15.8184]
[1644650725027,5.263,95.049,94.951,23.7274]
[1644650726026,5.263,95.049,94.952,2.38366791]
[1644650726726,5.263,95.049,94.96,15.7925]
[1644650726929,15.13,95.05,94.961,52.62195634]
[1644650727129,5.261,95.049,94.961,49.74462425]
[1644650727530,5.261,95.049,94.961,47.36095634]
[1644650729537,15.13,95.05,94.962,26.88826791]
[1644650729738,46.43501363,95.058,94.962,32.14926791]
[1644650729940,46.43501363,95.058,94.963,2.38366791]
[1644650730144,5.261,95.057,94.963,2.38366791]
[1644650731542,5.261,95.057,94.964,5.261]
[1644650731942,5.261,95.057,94.965,2.38366791]
[1644650732343,5.261,95.057,94.966,5.261]
[1644650732745,5.261,95.057,94.967,2.38366791]
[1644650733867,5.261,95.057,94.97,15.7903]
[1644650734059,46.43501363,95.058,94.97,15.7903]
[1644650734262,5.261,95.057,94.971,2.38366791]
[1644650737562,5.261,95.057,94.972,5.261]
[1644650737764,5.261,95.057,94.973,23.5399]
[1644650738970,23.2646,95.056,94.973,23.5399]
[1644650739164,5.261,95.055,94.973,23.5399]
[1644650739367,5.261,95.055,94.974,5.261]
[1644650739565,23.2646,95.056,94.974,5.261]
[1644650739765,23.2646,95.056,94.974,7.64466791]
[1644650740866,5.261,95.055,94.974,2.38366791]
[1644650745473,23.2646,95.056,94.975,5.261]
[1644650745772,23.2646,95.056,94.976,48.21786111]
[1644650745974,5.261,95.055,94.976,48.21786111]
[1644650746173,5.261,95.055,94.977,2.38366791]
[1644650746571,5.261,95.055,94.976,45.8341932]
[1644650747178,5.261,95.055,94.977,2.38366791]
[1644650747474,5.261,95.055,94.976,45.8341932]
[1644650749076,5.261,95.055,94.976,48.21786111]
[1644650750076,5.261,95.055,94.976,45.8341932]
[1644650751081,23.2646,95.056,94.976,45.8341932]
[1644650751281,46.43501363,95.058,94.977,7.64466791]
[1644650751477,46.43501363,95.058,94.98,15.13]